bitfinex-derivatives/quotes_ETHF0:USTF0_20250807
["timestamp","ask_amount","ask_price","bid_price","bid_amount"]
[1754525594823,3.5003,3670.1,3670.0,2.9641846]
[1754525595129,4.2436,3670.1,3670.0,2.9641846]
[1754525595329,4.7311,3670.1,3670.0,2.9641846]
[1754525595532,4.9256,3670.1,3670.0,2.9641846]
[1754525596029,4.4736,3670.1,3670.0,2.9641846]
[1754525596333,4.9256,3670.1,3670.0,2.9641846]
[1754525597033,1.7178,3670.1,3670.0,2.9641846]
[1754525597222,4.9256,3670.1,3670.0,2.9641846]
[1754525597733,1.7178,3670.1,3670.0,2.9641846]
[1754525597933,4.9256,3670.1,3670.0,2.9641846]
[1754525601531,4.9256,3670.1,3670.0,2.97871521]
[1754525604644,4.9256,3670.1,3670.0,2.68773044]
[1754525606436,4.9256,3670.1,3670.0,2.39183044]
[1754525607144,4.9256,3670.1,3670.0,1.21259061]
[1754525607440,4.9256,3670.1,3670.0,2.39183044]
[1754525617045,4.9256,3670.1,3670.0,0.55939061]
[1754525617247,4.9256,3670.1,3670.0,1.73863044]
[1754525618253,4.9256,3670.1,3670.0,1.76123044]
[1754525618452,4.9256,3670.1,3670.0,1.96603044]
[1754525618653,4.9256,3670.1,3670.0,2.17423044]
[1754525619446,4.9256,3670.1,3670.0,2.36463044]
[1754525619848,4.9256,3670.1,3670.0,2.40083044]
[1754525620150,4.9256,3670.1,3670.0,2.40749823]
[1754525620551,4.9256,3670.1,3670.0,1.95009823]
[1754525621353,4.9256,3670.1,3670.0,1.74529823]
[1754525621555,4.9404,3670.1,3670.0,2.19929823]
[1754525621851,4.9404,3670.1,3670.0,2.69019823]
[1754525622052,4.9404,3670.1,3670.0,2.40749823]
[1754525622449,4.9404,3670.1,3670.0,2.69019823]
[1754525622850,1.74426501,3670.4,3670.3,0.97622]
[1754525623052,1.7508,3670.4,3670.3,2.66895983]
[1754525623253,1.7508,3670.4,3670.3,2.69015823]
[1754525624657,3.9029,3670.6,3670.5,0.97619]
[1754525624860,4.9586,3670.6,3670.5,2.66892983]
[1754525625363,4.2005,3670.6,3670.5,2.14042823]
[1754525625559,3.8152,3670.6,3670.5,2.69012823]
[1754525625860,3.5054,3670.6,3670.5,2.69012823]
[1754525626354,2.61766,3670.6,3670.5,2.69012823]
[1754525626655,2.07129,3670.6,3670.5,2.69012823]
[1754525627654,2.36889,3670.6,3670.5,2.69012823]
[1754525629765,2.67869,3670.6,3670.5,2.69012823]
[1754525631062,0.6074,3670.6,3670.5,2.69012823]
[1754525632558,40.8,3671.1,3671.0,0.54472]
[1754525632761,1.7508,3671.1,3671.0,2.34795983]
[1754525632962,1.3025,3671.1,3671.0,2.11915983]
[1754525633166,1.7508,3671.1,3671.0,2.38215983]
[1754525633367,1.7508,3671.1,3671.0,2.40335823]
[1754525635971,1.7508,3671.1,3671.0,2.68605823]
[1754525636363,1.3025,3671.1,3671.0,2.40335823]
[1754525636566,1.7508,3671.1,3671.0,2.68605823]
[1754525638366,0.5915,3671.1,3671.0,3.86529806]
[1754525638567,0.5915,3671.1,3671.0,2.68605823]
[1754525638771,0.8804,3671.1,3671.0,2.68605823]
[1754525639167,0.8804,3671.1,3671.0,3.86529806]
[1754525639473,0.8804,3671.1,3671.0,2.68605823]
[1754525639673,1.3291,3671.1,3671.0,3.86529806]
[1754525639872,3.9022,3671.8,3671.7,0.54461]
[1754525640066,3.9022,3671.8,3671.7,1.72384983]
[1754525640373,3.9022,3671.8,3671.7,1.74504823]
[1754525640574,4.9257,3671.8,3671.7,1.74504823]
[1754525640775,4.9257,3671.8,3671.7,2.03402804]
[1754525643876,4.9257,3671.8,3671.7,2.25612804]
[1754525644073,4.9257,3671.8,3671.7,2.65602804]
[1754525644273,1.7179,3671.8,3671.7,2.03402804]
[1754525644473,4.9257,3672.2,3672.1,0.95876]
[1754525644679,4.9257,3672.2,3672.1,2.66987964]
[1754525644876,4.9257,3672.2,3672.1,2.96797964]
[1754525645175,2.58887,3672.2,3672.1,2.96797964]
[1754525645372,0.5748,3672.4,3672.1,2.98917804]
[1754525645578,4.9257,3672.6,3672.5,1.1665]
[1754525645772,4.9257,3672.6,3672.5,1.2016]
[1754525646075,4.9257,3672.6,3672.5,1.4997]
[1754525646476,4.9257,3672.6,3672.5,1.5208984]
[1754525646667,40.8,3672.9,3672.8,0.54445]
[1754525646872,41.8235,3672.9,3672.8,0.76655]
[1754525647074,41.8235,3672.9,3672.8,2.23476964]
[1754525647277,1.7179,3672.9,3672.8,2.66976964]
[1754525647580,1.7179,3672.9,3672.8,2.98906804]
[1754525647971,1.7179,3672.9,3672.8,2.75936804]
[1754525648681,1.7179,3672.9,3672.8,2.98906804]
[1754525650077,1.0,3673.0,3672.8,2.69096804]
[1754525650282,2.5213,3673.0,3672.9,0.9552]
[1754525650484,2.0726,3673.0,3672.9,0.9763984]
[1754525650685,1.0,3673.0,3672.9,6.9763984]
[1754525650881,0.42522,3673.0,3672.9,6.9763984]
[1754525651077,1.5213,3673.2,3673.1,0.9552]
[1754525651277,1.5213,3673.2,3673.1,2.42341964]
[1754525651477,1.7179,3673.2,3673.1,2.44461804]
[1754525652078,1.7179,3673.2,3673.1,1.48941804]
[1754525652577,1.7179,3673.2,3673.1,1.71151804]
[1754525652778,1.7179,3673.2,3673.1,2.44461804]
[1754525654385,1.7179,3673.6,3673.5,0.74455]
[1754525654576,1.7179,3673.6,3673.5,0.5655484]
[1754525654782,1.7179,3673.6,3673.5,2.03376804]
[1754525658583,1.7179,3673.6,3673.5,2.65576804]
[1754525658984,0.6944,3673.6,3673.2,1.46821964]
[1754525659187,4.9257,3673.3,3673.2,2.01260964]
[1754525659687,1.7179,3673.3,3673.2,2.01260964]
[1754525660583,1.7179,3673.3,3673.2,2.66740964]
[1754525660783,1.7179,3673.3,3673.2,3.36930964]
[1754525660981,1.2692,3673.3,3673.2,2.01260964]
[1754525661185,1.7179,3673.3,3673.2,3.36930964]
[1754525663190,1.7179,3673.3,3673.2,3.66740964]
[1754525665190,0.2859,3673.3,3673.2,3.66740964]
[1754525665388,0.5748,3673.3,3673.2,3.66740964]
[1754525668093,1.7179,3673.3,3673.2,3.66740964]
[1754525673091,1.2692,3673.3,3673.2,3.66740964]
[1754525673294,4.3542,3673.7,3673.6,2.28814]
[1754525673494,4.3542,3673.7,3673.6,3.75635964]
[1754525675196,4.951,3673.7,3673.6,3.75635964]
[1754525678496,1.7432,3673.7,3673.6,3.75635964]
[1754525682198,0.5082,3673.7,3673.6,3.75635964]
[1754525682395,0.8142,3673.7,3673.6,3.75635964]
[1754525682595,1.7432,3673.7,3673.6,3.75635964]
[1754525684502,1.4524,3673.7,3673.6,3.75635964]
[1754525685397,1.7432,3673.7,3673.6,3.75635964]
[1754525687091,1.7432,3673.7,3673.6,2.01255964]
[1754525689706,1.7432,3673.7,3673.6,2.29585964]
[1754525690903,1.7432,3673.7,3673.6,2.50055964]
[1754525691600,1.7432,3673.7,3673.6,3.25755964]
[1754525692210,1.7432,3673.7,3673.6,1.03234]
[1754525692406,1.7432,3673.7,3673.6,2.50055964]
[1754525693007,1.7432,3673.7,3673.6,2.95075964]
[1754525693205,1.7432,3673.7,3673.6,3.25755964]
[1754525695813,1.7432,3673.7,3673.6,3.44845964]
[1754525697114,1.7432,3674.1,3674.0,0.54426]
[1754525697310,1.7432,3674.1,3674.0,1.46821964]
[1754525700202,42.5432,3674.1,3674.0,1.46821964]
[1754525702313,46.49842749,3674.1,3674.0,1.46821964]
[1754525702706,0.6885,3673.9,3673.8,2.01250964]
[1754525703009,1.7289,3673.9,3673.8,2.01250964]
[1754525707217,0.6885,3673.9,3673.7,0.54431]
[1754525707411,0.6885,3673.2,3673.1,2.41032964]
[1754525707609,1.7289,3673.2,3673.1,3.76452964]
[1754525708208,1.7289,3673.2,3673.1,2.71282964]
[1754525708412,1.7289,3673.2,3673.1,2.20972964]
[1754525709517,1.7289,3673.2,3673.1,2.95682964]
[1754525709815,1.7289,3673.2,3673.1,3.26062964]
[1754525710010,1.7289,3673.2,3673.1,3.46122964]
[1754525710209,1.4217,3673.2,3673.1,3.76452964]
[1754525710417,1.7289,3673.2,3673.1,3.76452964]
[1754525712513,1.7289,3673.2,3673.1,2.20972964]
[1754525712708,1.7289,3673.2,3673.1,1.66531964]
[1754525712917,1.7289,3673.2,3673.1,1.46821964]
[1754525713916,1.7289,3673.2,3673.1,2.71621964]
[1754525714115,1.7289,3673.2,3673.1,2.91681964]
[1754525714318,1.7289,3673.2,3673.1,3.22011964]
[1754525717523,1.7289,3673.2,3673.1,1.66531964]
[1754525718121,1.7289,3673.2,3673.1,1.96781964]
[1754525718319,1.7289,3673.2,3673.1,1.46821964]
[1754525719522,1.7289,3673.2,3673.1,2.71621964]
[1754525720519,1.7289,3673.2,3673.1,2.91681964]
[1754525720824,1.7289,3673.2,3673.1,3.22011964]
[1754525721326,1.4217,3673.3,3673.2,2.2963]
[1754525721621,3.95369529,3673.8,3673.7,2.29622]
[1754525721827,3.941,3673.8,3673.7,3.76443964]
[1754525722524,0.3068,3673.8,3673.7,3.76443964]
[1754525723224,0.7332,3673.8,3673.7,3.76443964]
[1754525723523,1.7289,3673.8,3673.7,3.76443964]
[1754525724323,1.4217,3673.8,3673.7,3.76443964]
[1754525724925,1.7289,3673.8,3673.7,3.76443964]
[1754525729533,0.6885,3673.8,3673.7,3.76443964]
[1754525729738,41.8325,3674.1,3674.0,2.30087]
[1754525730929,41.8325,3674.1,3674.0,3.76908964]
[1754525732342,41.8325,3674.1,3674.0,2.72998964]
[1754525733641,41.8325,3674.1,3674.0,2.21828964]
[1754525735139,60.3515,3674.1,3674.0,2.52128964]
[1754525735338,0.7008,3673.9,3673.8,0.54429]
[1754525735538,0.7008,3673.9,3673.7,0.54431]
[1754525735739,4.9411,3673.8,3673.7,0.54431]
[1754525735937,23.4601,3673.8,3673.7,0.54431]
[1754525736139,23.4601,3673.8,3673.7,0.75011]
[1754525736337,23.4601,3673.8,3673.7,1.05311]
[1754525737945,23.4601,3673.8,3673.7,1.49341]
[1754525738145,23.4601,3673.8,3673.7,1.79011]
[1754525738642,23.4601,3673.8,3673.7,1.2458]
[1754525738843,23.4601,3673.8,3673.6,1.46821964]
[1754525739040,1.5265,3673.7,3673.6,1.46821964]
[1754525739343,1.7333,3673.7,3673.6,1.46821964]
[1754525740243,1.7333,3673.7,3673.6,1.97701964]
[1754525740545,1.7333,3673.7,3673.6,2.92271964]
[1754525740842,1.7333,3673.7,3673.6,3.22481964]
[1754525743240,0.5014,3673.2,3673.1,1.5844]
[1754525743443,1.7333,3673.2,3673.1,1.7902]
[1754525743942,1.7333,3673.2,3673.1,2.301]
[1754525751853,3.2078,3673.3,3673.1,2.301]
[1754525752149,3.2078,3673.3,3673.2,1.7566]
[1754525752150,4.4449,3673.3,3673.2,1.7566]
[1754525752350,4.9411,3673.3,3673.2,1.7566]
[1754525756351,4.9411,3673.3,3672.8,0.75024]
[1754525756352,1.7333,3672.9,3672.8,0.75024]
[1754525756649,1.7333,3672.6,3672.5,3.22481964]
[1754525760552,1.0726,3672.5,3672.3,1.55402]
[1754525760758,1.784,3672.4,3672.3,1.75282]
[1754525760946,4.9918,3672.4,3672.3,1.75282]
[1754525761647,0.7114,3672.1,3672.0,0.494]
[1754525761956,1.784,3672.1,3672.0,1.03856]
[1754525762158,1.784,3672.1,3672.0,0.74336]
[1754525762457,1.784,3672.1,3672.0,1.03856]
[1754525762651,1.784,3672.1,3672.0,1.75286]
[1754525762850,1.784,3672.1,3672.0,1.94696]
[1754525763158,3.7187,3672.4,3672.3,0.74333]
[1754525763350,4.9918,3672.4,3672.3,3.70584964]
[1754525766253,3.2078,3672.4,3672.3,3.70584964]
[1754525766661,3.5082,3672.4,3672.3,3.70584964]
[1754525766861,4.9918,3672.4,3672.3,3.70584964]
[1754525767367,4.9918,3672.4,3672.3,2.23763]
[1754525768662,4.9918,3672.4,3672.3,1.75493]
[1754525768864,4.9918,3672.4,3672.3,3.70584964]
[1754525769564,3.2078,3672.4,3672.3,3.70584964]
[1754525769867,1.4743,3673.0,3672.9,1.6931]
[1754525770064,1.784,3673.0,3672.9,1.6931]
[1754525770463,44.0078,3673.1,3673.0,1.22802]
[1754525770665,45.0804,3673.1,3673.0,3.70573964]
[1754525773365,45.0804,3673.1,3673.0,2.23752]
[1754525777864,0.4625,3672.6,3672.3,3.75232]
[1754525778070,1.784,3672.4,3672.3,3.75232]
[1754525778264,1.784,3672.4,3672.3,4.44042]
[1754525778462,1.784,3672.4,3672.3,5.15472]
[1754525779069,1.784,3672.4,3672.3,4.44042]
[1754525779767,1.784,3672.4,3672.3,4.72902]
[1754525780660,1.784,3672.4,3672.3,5.15472]
[1754525780857,1.784,3672.4,3672.1,1.46821964]
[1754525780858,1.784,3672.4,3672.1,0.54455]
[1754525781063,1.0726,3672.3,3672.1,0.54455]
[1754525781363,1.784,3672.2,3672.1,0.54455]
[1754525781563,42.584,3672.2,3672.1,1.03855]
[1754525783371,61.099,3672.2,3672.1,1.03855]
[1754525783669,61.099,3672.2,3672.1,1.75285]
[1754525783866,61.099,3672.2,3672.1,1.2083]
[1754525785681,61.099,3672.2,3672.1,1.4024]
[1754525785971,61.099,3672.2,3672.1,3.16131964]
[1754525787675,61.099,3672.2,3672.1,1.6931]
[1754525795690,60.3361,3672.2,3671.9,5.22059964]
[1754525795892,1.7428,3672.1,3672.0,1.2758]
[1754525796086,1.1409,3672.1,3672.0,1.7753]
[1754525796287,1.7428,3672.1,3672.0,1.7753]
[1754525802091,0.7157,3671.9,3671.8,0.75169]
[1754525802390,1.7428,3671.9,3671.8,1.05049]
[1754525802995,1.7428,3671.9,3671.8,1.50779]
[1754525803194,1.7428,3671.9,3671.8,1.82039]
[1754525803395,1.7428,3671.9,3671.8,0.54459]
[1754525803587,7.7428,3671.9,3671.4,3.2078]
[1754525803792,1.7428,3671.5,3671.4,5.52776]
[1754525803990,20.2578,3671.5,3671.4,5.52776]
[1754525805293,20.2578,3671.5,3671.4,6.99597964]
[1754525806096,20.2578,3671.5,3671.4,5.52776]
[1754525807887,18.515,3671.5,3671.4,5.52776]
[1754525808496,27.24356964,3671.5,3670.7,0.54476]
[1754525808693,0.7157,3670.8,3670.7,2.32006]
[1754525808999,1.7428,3670.8,3670.7,1.7753]
[1754525810292,41.8271,3671.1,3671.0,0.7066]
[1754525810498,60.3421,3671.1,3671.0,1.7753]
[1754525818710,60.3421,3671.1,3671.0,1.7753]
[1754525820708,60.3421,3671.1,3671.0,1.4627]
[1754525821006,60.3421,3671.1,3671.0,1.7671]
[1754525826509,59.315,3671.1,3671.0,1.7671]
[1754525826809,59.319,3671.1,3671.0,1.7671]
[1754525828311,59.6295,3671.1,3671.0,1.7671]
[1754525828513,59.319,3671.1,3671.0,1.7671]
[1754525828715,40.8,3671.1,3671.0,4.9749]
[1754525830010,18.519,3671.2,3671.1,2.30281]
[1754525830011,18.8295,3671.2,3671.1,2.30281]
[1754525830412,59.6295,3671.2,3671.1,2.30281]
[1754525830914,41.1105,3671.2,3671.1,2.30281]
[1754525832613,41.8477,3671.2,3671.1,2.30281]
[1754525834408,41.8477,3671.2,3671.1,0.74371]
[1754525834615,41.8477,3671.2,3671.1,0.54471]
[1754525835615,0.6888,3671.0,3670.9,0.54473]
[1754525835806,20.2535,3671.0,3670.9,0.54473]
[1754525836012,19.2058,3671.0,3670.8,0.54474]
[1754525836212,1.7365,3670.9,3670.8,0.54474]
[1754525836415,42.5365,3670.9,3670.8,0.54474]
[1754525837912,1.0477,3670.8,3670.7,0.54475]
[1754525838117,0.6888,3670.5,3670.4,0.54481]
[1754525838317,1.7365,3670.5,3670.4,0.54481]
[1754525838612,42.5365,3670.5,3670.4,0.54481]
[1754525839316,0.6888,3670.0,3669.9,2.03761979]
[1754525839612,20.2535,3670.0,3669.9,1.52581979]
[1754525840109,61.0535,3670.0,3669.9,1.52581979]
[1754525840315,61.0535,3670.0,3669.9,1.81091979]
[1754525840515,61.0535,3670.0,3669.9,2.46711979]
[1754525841917,61.0535,3670.0,3669.9,3.08431979]
[1754525842813,61.0535,3670.0,3669.9,2.03761979]
[1754525843013,61.0535,3670.0,3669.9,3.28391979]
[1754525844611,59.317,3670.0,3669.9,3.28391979]
[1754525844916,40.8,3670.0,3669.9,12.49171979]
[1754525845417,4.5036,3670.6,3670.5,2.30289]
[1754525845615,23.4643,3670.6,3670.5,2.30289]
[1754525845816,23.4643,3670.6,3670.5,2.31841593]
[1754525846616,4.9443,3670.6,3670.5,2.31841593]
[1754525846816,23.4643,3670.6,3670.5,2.31841593]
[1754525847019,20.2565,3670.6,3670.5,2.31841593]
[1754525847416,1.44,3670.6,3670.5,3.78663557]
[1754525847722,19.5193,3670.6,3670.5,3.78663557]
[1754525850114,19.9767,3670.6,3670.5,3.78663557]
[1754525850920,18.52,3670.6,3670.5,3.78663557]
[1754525851122,1.7478,3670.8,3670.7,1.21046]
[1754525851419,20.2668,3670.8,3670.7,2.25866]
[1754525851920,20.2668,3670.8,3670.7,2.27418593]
[1754525854519,44.0078,3671.0,3670.7,2.27418593]
[1754525854826,3.8952,3671.0,3670.9,3.18211964]
[1754525855226,4.3526,3671.0,3670.9,3.18211964]
[1754525855518,3.6003,3671.0,3670.9,3.18211964]
[1754525855922,1.1448,3671.0,3670.9,3.19764557]
[1754525856124,1.4545,3671.0,3670.9,3.19764557]
[1754525856626,1.7478,3671.0,3670.9,3.19764557]
[1754525858426,1.7478,3671.0,3670.9,1.72942593]
[1754525858726,1.7478,3671.0,3670.9,3.19764557]
[1754525864026,0.9807,3671.0,3670.9,3.19764557]
[1754525864323,40.8,3671.1,3671.0,0.54472]
[1754525864527,40.8,3671.1,3671.0,1.21042]
[1754525864727,40.8,3671.1,3671.0,2.25862]
[1754525864927,40.8,3671.1,3671.0,2.27414593]
[1754525865127,0.9524,3671.1,3671.0,2.27414593]
[1754525865328,1.7478,3671.1,3671.0,2.27414593]
[1754525880434,1.4529,3671.1,3671.0,2.27414593]
[1754525880738,1.7589,3671.1,3671.0,2.27414593]
[1754525881140,42.5589,3671.1,3671.0,2.27414593]
[1754525881340,40.8,3671.1,3671.0,2.27414593]
[1754525881640,1.7626,3671.4,3671.3,1.97927]
[1754525881939,23.4834,3671.7,3671.6,1.24263]
[1754525882141,24.22851875,3671.7,3671.6,2.27993]
[1754525883038,21.02071875,3671.7,3671.6,2.29545593]
[1754525883337,1.7626,3671.7,3671.6,2.29545593]
[1754525883543,40.8,3671.8,3671.6,2.29545593]
[1754525883745,1.7626,3671.7,3671.6,1.25815593]
[1754525884344,1.7626,3671.7,3671.6,2.29545593]
[1754525885040,0.7019,3671.7,3671.6,2.29545593]
[1754525885238,40.8,3671.8,3671.6,2.29545593]
[1754525885434,1.4541,3671.7,3671.6,1.25815593]
[1754525885639,1.7626,3671.7,3671.6,1.25815593]
[1754525886043,1.7626,3671.7,3671.6,2.29545593]
[1754525887746,1.7626,3671.7,3671.6,0.56015593]
[1754525887941,20.2736,3671.7,3671.6,0.01552593]
[1754525888141,1.0607,3671.6,3670.9,3.2078]
[1754525888347,1.7626,3671.0,3670.9,4.68803]
[1754525888547,1.7626,3671.0,3670.9,5.48783]
[1754525891556,19.2129,3671.5,3671.4,0.54466]
[1754525891753,19.2129,3671.5,3671.4,1.48016]
[1754525891954,0.7019,3671.5,3671.4,2.08356]
[1754525892155,1.7626,3671.5,3671.4,2.08356]
[1754525892757,1.7626,3671.5,3671.4,2.27996]
[1754525893456,41.5547,3672.0,3671.9,0.54458]
[1754525893657,1.4566,3671.9,3671.8,1.78279]
[1754525893952,2.50689737,3671.9,3671.8,1.78279]
[1754525894154,2.50689737,3671.9,3671.8,0.74349]
[1754525894958,2.50689737,3671.9,3671.8,0.54459]
[1754525895455,1.7626,3671.8,3671.7,0.54461]
[1754525896454,1.7626,3671.7,3671.6,0.54462]
[1754525896650,20.2726,3671.7,3671.6,0.54462]
[1754525898060,21.01699708,3671.7,3671.6,0.54462]
[1754525901158,21.01699708,3671.7,3671.6,2.27992]
[1754525901662,21.01699708,3671.7,3671.6,1.78282]
[1754525901956,21.01699708,3671.7,3671.6,1.04622]
[1754525902364,21.01699708,3671.7,3671.6,0.54462]
[1754525904267,21.01699708,3671.7,3671.6,0.83282]
[1754525904469,21.01699708,3671.7,3671.6,1.48012]
[1754525905662,21.01699708,3671.7,3671.6,1.78082]
[1754525905968,21.01699708,3671.7,3671.6,2.08352]
[1754525907967,21.01699708,3671.7,3671.6,2.27992]
[1754525913672,19.95629708,3671.7,3671.6,2.27992]
[1754525913969,0.74439708,3671.7,3671.6,2.27992]
[1754525914172,18.508,3671.7,3671.6,2.27992]
[1754525914373,19.54359708,3671.7,3671.6,2.27992]
[1754525914873,19.25239708,3671.7,3671.6,2.27992]
[1754525915277,4.2076,3672.1,3672.0,1.24647]
[1754525915478,23.38209714,3672.1,3672.0,2.25507]
[1754525915678,24.18069714,3672.1,3672.0,2.25507]
[1754525917178,23.14349714,3672.1,3672.0,2.25507]
[1754525917574,19.93569714,3672.1,3672.0,2.25507]
[1754525917784,20.97289714,3672.1,3672.0,2.25507]
[1754525918475,20.2256,3672.1,3672.0,2.25507]
[1754525918673,1.7176,3672.1,3672.0,2.25507]
[1754525918876,1.7176,3672.1,3672.0,1.32727]
[1754525919178,2.46460817,3672.1,3672.0,2.25507]
[1754525919378,1.7176,3672.1,3672.0,2.25507]
[1754525920178,1.7176,3672.1,3672.0,0.54457]
[1754525920479,1.7176,3671.9,3671.8,0.54459]
[1754525921475,1.7176,3671.9,3671.8,1.97309]
[1754525921775,1.7176,3671.9,3671.8,2.25509]
[1754525923976,1.7176,3671.9,3671.8,1.97309]
[1754525924177,1.7176,3671.9,3671.8,0.54459]
[1754525924383,1.7176,3671.8,3671.6,0.54462]
[1754525924576,1.7176,3671.7,3671.6,0.54462]
[1754525924770,20.2226,3671.7,3671.6,0.54462]
[1754525924976,20.2226,3671.7,3671.6,2.25512]
[1754525926576,20.2226,3671.7,3671.6,1.24652]
[1754525926779,20.2226,3671.7,3671.6,2.25512]
[1754525927184,20.2226,3671.7,3671.6,1.4285]
[1754525927374,0.9917,3671.7,3671.5,0.54463]
[1754525927580,1.7176,3671.6,3671.5,2.05393]
[1754525928086,1.7176,3671.6,3671.5,2.25513]
[1754525928779,1.7176,3671.6,3671.5,0.54463]
[1754525929180,1.7176,3671.6,3671.5,1.27123]
[1754525929374,20.2226,3671.6,3671.5,1.47963]
[1754525929780,20.2226,3671.6,3671.5,1.77193]
[1754525930084,20.2226,3671.6,3671.5,2.05393]
[1754525930887,20.2226,3671.6,3671.5,1.77193]
[1754525931786,20.2226,3671.6,3671.5,2.25513]
[1754525938790,18.505,3671.6,3671.5,2.25513]
[1754525939085,18.6981,3671.6,3671.5,2.25513]
[1754525939788,20.2496,3671.6,3671.5,2.25513]
[1754525940691,1.7446,3671.6,3671.5,2.25513]
[1754525942692,1.7446,3671.6,3671.5,1.54473]
[1754525943089,1.7446,3671.6,3671.5,2.31173]
[1754525946291,0.9896,3671.6,3671.5,0.54463]
[1754525946492,0.698,3671.1,3671.0,3.9046]
[1754525946692,1.7406,3671.1,3671.0,4.9755]
[1754525947796,1.7406,3671.1,3671.0,5.52022]
[1754525948201,1.7406,3671.1,3671.0,4.24572]
[1754525948496,1.7406,3671.1,3671.0,5.01002]
[1754525948697,1.7406,3671.1,3671.0,5.52022]
[1754525949092,1.7406,3671.1,3671.0,2.31242]
[1754525949293,1.0426,3671.0,3670.9,0.54473]
[1754525949496,19.7793,3671.0,3670.9,0.54473]
[1754525949695,20.2436,3671.0,3670.9,0.54473]
[1754525950596,20.2436,3671.0,3670.9,0.84863]
[1754525950800,20.2436,3671.0,3670.9,1.30903]
[1754525951001,20.2436,3671.0,3670.9,1.51553]
[1754525951303,20.2436,3671.0,3670.9,2.10883]
[1754525951993,20.2436,3671.0,3670.9,1.03793]
[1754525952191,20.2436,3671.0,3670.9,1.80223]
[1754525953103,20.2436,3671.0,3670.9,1.2575]
[1754525956902,20.2436,3671.0,3670.9,1.5641]
[1754525957706,20.2436,3671.0,3670.9,1.7677]
[1754525958003,1.7406,3671.0,3670.9,1.7677]
[1754525960901,0.6792,3671.0,3670.9,1.7677]
[1754525961104,18.504,3671.1,3671.0,1.24151]
[1754525961304,18.9941,3671.1,3671.0,2.31241]
[1754525961607,19.4584,3671.1,3671.0,2.31241]
[1754525962008,19.6475,3671.1,3671.0,2.31241]
[1754525962308,18.504,3671.1,3671.0,2.31241]
[1754525962608,18.9807,3671.1,3671.0,2.31241]
[1754525962907,19.9382,3671.1,3671.0,2.31241]
[1754525963502,20.2446,3671.1,3671.0,2.31241]
[1754525963709,19.202,3671.1,3670.9,0.54472]
[1754525963911,0.698,3671.0,3670.9,1.80222]
[1754525964207,1.7406,3671.0,3670.9,2.10882]
[1754525965313,1.7406,3671.0,3670.9,2.31242]
[1754525965815,1.7406,3671.0,3670.9,1.7677]
[1754525967709,1.7406,3671.0,3670.5,3.2078]
[1754525967710,1.7406,3670.6,3670.5,0.2036]
[1754525967914,0.698,3670.3,3670.2,1.7677]
[1754525968113,1.7406,3670.3,3670.2,1.7677]
[1754525972815,0.9856,3670.3,3670.2,1.7677]
[1754525973017,18.504,3670.4,3670.3,2.29362]
[1754525973616,18.8116,3670.4,3670.3,2.29362]
[1754525975121,20.2529,3670.4,3670.3,1.7488]
[1754525975611,19.1951,3670.4,3670.2,0.54483]
[1754525975810,1.7489,3670.3,3670.2,1.79363]
[1754525976015,1.7489,3670.3,3670.2,2.29363]
[1754525977319,1.7489,3670.3,3670.2,1.7488]
[1754525979920,1.7489,3670.3,3670.2,1.2356]
[1754525980117,1.7489,3670.3,3670.2,1.5431]
[1754525981321,1.7489,3670.3,3670.2,1.7488]
[1754525985923,0.6911,3670.1,3670.0,4.9566]
[1754525986128,1.7489,3670.1,3670.0,4.9566]
[1754525988827,1.4621,3670.1,3670.0,4.9566]
[1754525989033,18.505,3670.2,3670.1,2.29365]
[1754525989235,20.2539,3670.2,3670.1,2.29365]
[1754525989532,20.2539,3670.2,3670.1,1.7488]
[1754525991722,0.54481,3670.4,3670.1,1.7488]
[1754525991928,1.7489,3670.2,3670.1,2.08794]
[1754525992333,1.7489,3670.2,3670.1,2.29364]
[1754525993336,0.6911,3670.2,3670.0,3.2078]
[1754525993635,1.7489,3670.1,3670.0,0.9413]
[1754525993829,20.2539,3670.1,3670.0,0.1994]
[1754525994229,1.7489,3670.0,3669.9,0.98093979]
[1754525994435,2.49428596,3670.0,3669.9,0.98093979]
[1754525994936,3.03914596,3670.0,3669.9,0.98093979]
[1754525996134,49.83914596,3670.0,3669.9,0.98093979]
[1754525999934,61.80028596,3670.0,3669.9,2.71383979]
[1754526000139,61.80028596,3670.0,3669.9,2.40233979]
[1754526000433,63.2685056,3670.0,3669.9,0.98093979]
[1754526004542,66.4763056,3670.0,3669.9,0.98093979]
[1754526005039,66.4763056,3670.0,3669.9,1.47743979]
[1754526005240,66.4763056,3670.0,3669.9,2.71923979]
[1754526006840,47.9703056,3670.0,3669.9,2.71923979]
[1754526007045,63.95128596,3670.0,3669.9,2.71923979]
[1754526007340,65.00438596,3670.0,3669.9,2.71923979]
[1754526008545,46.49738596,3670.0,3669.9,2.71923979]
[1754526008745,65.00438596,3670.0,3669.9,2.71923979]
[1754526009044,64.25328596,3670.0,3669.9,2.71923979]
[1754526010045,65.00438596,3670.0,3669.9,2.71923979]
[1754526010747,45.44428596,3670.0,3669.9,2.71923979]
[1754526010942,62.5148,3670.0,3669.9,2.71923979]
[1754526011439,62.8168,3670.0,3669.9,2.71923979]
[1754526011836,63.5679,3670.0,3669.9,2.71923979]
[1754526012231,64.31429546,3670.0,3669.9,2.71923979]
[1754526012842,63.26119546,3670.0,3669.9,2.71923979]
[1754526013146,62.5138,3670.0,3669.9,2.71923979]
[1754526016340,44.0078,3670.0,3669.9,2.71923979]
[1754526016546,1.7517,3670.4,3670.3,1.23661]
[1754526016742,20.2567,3670.4,3670.3,0.6918]
[1754526017045,21.00345666,3670.4,3670.3,1.7383]
[1754526021553,0.74675666,3670.4,3670.3,3.20651964]
[1754526021853,20.30485666,3670.4,3670.3,1.7383]
[1754526022047,20.51145666,3670.4,3670.3,1.7383]
[1754526022242,20.70275666,3670.4,3670.3,1.7383]